fUSD/lending_fUSD_20251019
["ID","MTS","AMOUNT","RATE_DAILY","PERIOD"]
[391852187,1760914261159,-500.0,0.0003682,30]
[391852188,1760914261168,-2339.6347,0.00036888,7]
[391852189,1760914261178,-701.89041,0.00036888,30]
[391852190,1760914261187,-500.0,0.0003695,30]
[391852191,1760914261197,-500.0,0.00036981,30]
[391852192,1760914261206,-529.29,0.00036986,8]
[391852193,1760914261215,-590.38,0.00036986,2]
[391852194,1760914261225,-500.0,0.00036986,2]
[391852195,1760914261235,-500.0,0.00036986,8]
[391852196,1760914261244,-733.54,0.00036986,8]
[391852197,1760914261254,-691.38,0.00036986,8]
[391852198,1760914261264,-691.65,0.00036986,8]
[391852199,1760914261274,-695.41,0.00036986,8]
[391852200,1760914261283,-602.05,0.00036986,8]
[391852201,1760914261292,-500.0,0.00036986,8]
[391852202,1760914261302,-680.15,0.00036986,8]
[391852203,1760914261311,-500.0,0.00036986,8]
[391852204,1760914261320,-500.0,0.00036986,8]
[391852205,1760914261330,-603.08,0.00036986,8]
[391852206,1760914261339,-500.0,0.00036986,8]
[391852207,1760914261349,-500.0,0.00036986,8]
[391852208,1760914261358,-526.81,0.00036986,8]
[391852209,1760914261368,-687.05,0.00036986,8]
[391852210,1760914261378,-500.0,0.00036986,8]
[391852211,1760914261388,-519.69,0.00036986,8]
[391852212,1760914261398,-654.36,0.00036986,8]
[391852213,1760914261408,-500.0,0.00036986,8]
[391852214,1760914261417,-543.04,0.00036986,8]
[391852215,1760914261428,-795.62,0.00036986,8]
[391852216,1760914261438,-500.0,0.00036986,8]
[391852217,1760914261448,-550.89,0.00036986,8]
[391852218,1760914261458,-1497.87,0.00036986,4]
[391852219,1760914261468,-500.0,0.00036986,8]
[391852220,1760914261478,-448.68649836,0.00036986,8]
[391852221,1760914261488,-2948.81,0.00036986,2]
[391852222,1760914261498,-893.82,0.00036986,8]
[391852223,1760914261508,-688.48,0.00036986,8]
[391852224,1760914261518,-855.19,0.00036986,8]
[391852225,1760914261527,-500.0,0.00036986,8]
[391852226,1760914261538,-604.79,0.00036986,8]
[391852227,1760914261548,-500.0,0.00036986,8]
[391852228,1760914261557,-586.56,0.00036986,8]
[391852229,1760914261567,-500.0,0.00036986,8]
[391852230,1760914261577,-631.41,0.00036986,8]
[391852231,1760914261591,-667.66,0.00036986,8]
[391852232,1760914261600,-618.32,0.00036986,8]
[391852233,1760914261610,-994.37169098,0.00037,120]
[391852234,1760914261619,-701.89041,0.00037088,30]
[391852235,1760914261630,-10030.6599693,0.000371,120]
[391852236,1760914261640,-1200.0,0.0003711,30]
[391852237,1760914261649,-500.0,0.00037137,30]
[391852238,1760914261659,-308.82109804,0.00037184,2]
[391852239,1760914261669,-1300.0,0.00037193,30]
[391852240,1760914261679,-500.0,0.00037233,30]
[391852241,1760914261689,-529.29,0.0003726,8]
[391852242,1760914261699,-590.38,0.0003726,2]
[391852243,1760914261708,-500.0,0.0003726,2]
[391852244,1760914261718,-506.22501701,0.0003726,8]
[391852245,1760914261728,-733.54,0.0003726,8]
[391852246,1760914261738,-691.38,0.0003726,8]
[391852247,1760914261748,-691.65,0.0003726,8]
[391852248,1760914261758,-695.41,0.0003726,8]
[391852249,1760914261768,-602.05,0.0003726,8]
[391852250,1760914261780,-500.0,0.0003726,8]
[391852251,1760914261797,-680.15,0.0003726,8]
[391852252,1760914261807,-500.0,0.0003726,8]
[391852253,1760914261817,-500.0,0.0003726,8]
[391852254,1760914261827,-603.08,0.0003726,8]
[391852255,1760914261837,-500.0,0.0003726,8]
[391852256,1760914261846,-500.0,0.0003726,8]
[391852257,1760914261856,-526.81,0.0003726,8]
[391852258,1760914261866,-687.05,0.0003726,8]
[391852259,1760914261875,-500.0,0.0003726,8]
[391852260,1760914261885,-519.69,0.0003726,8]
[391852261,1760914261895,-654.36,0.0003726,8]
[391852262,1760914261905,-500.0,0.0003726,8]
[391852263,1760914261915,-543.04,0.0003726,8]
[391852264,1760914261925,-795.62,0.0003726,8]
[391852265,1760914261938,-500.0,0.0003726,8]
[391852266,1760914261948,-550.89,0.0003726,8]
[391852267,1760914261958,-1497.87,0.0003726,4]
[391852268,1760914261969,-500.0,0.0003726,8]
[391852269,1760914261979,-2948.81,0.0003726,2]
[391852270,1760914261988,-893.82,0.0003726,8]
[391852271,1760914261998,-688.48,0.0003726,8]
[391852272,1760914262009,-855.19,0.0003726,8]
[391852273,1760914262018,-500.0,0.0003726,8]
[391852274,1760914262028,-604.79,0.0003726,8]
[391852275,1760914262038,-500.0,0.0003726,8]
[391852276,1760914262048,-586.56,0.0003726,8]
[391852277,1760914262058,-643.34594284,0.0003726,8]
[391852278,1760914262067,-631.41,0.0003726,8]
[391852279,1760914262077,-667.66,0.0003726,8]
[391852280,1760914262087,-618.32,0.0003726,8]
[391852281,1760914262097,-701.89041,0.00037288,30]
[391852282,1760914262107,-600.0,0.00037324,30]
[391852283,1760914262117,-500.0,0.00037333,30]
[391852284,1760914262127,-542.06124566,0.00037342,30]
[391852285,1760914262136,-500.0,0.00037459,30]
[391852286,1760914262146,-701.89041,0.00037488,30]
[391852287,1760914262155,-1200.0,0.00037506,30]
[391852288,1760914262165,-542.06124566,0.00037507,30]
[391852289,1760914262175,-529.29,0.00037534,8]
[391852290,1760914262184,-590.38,0.00037534,2]
[391852291,1760914262194,-500.0,0.00037534,2]
[391852292,1760914262203,-733.54,0.00037534,8]
[391852293,1760914262214,-691.38,0.00037534,8]
[391852294,1760914262224,-691.65,0.00037534,8]
[391852295,1760914262234,-695.41,0.00037534,8]
[391852296,1760914262243,-602.05,0.00037534,8]
[391852297,1760914262253,-500.0,0.00037534,8]
[391852298,1760914262263,-680.15,0.00037534,8]
[391852299,1760914262273,-500.0,0.00037534,8]
[391852300,1760914262283,-500.0,0.00037534,8]
[391852301,1760914262292,-603.08,0.00037534,8]
[391852302,1760914262302,-500.0,0.00037534,8]
[391852303,1760914262312,-500.0,0.00037534,8]
[391852304,1760914262322,-526.81,0.00037534,8]
[391852305,1760914262332,-687.05,0.00037534,8]
[391852306,1760914262342,-500.0,0.00037534,8]
[391852307,1760914262351,-519.69,0.00037534,8]
[391852308,1760914262361,-654.36,0.00037534,8]
[391852309,1760914262371,-500.0,0.00037534,8]
[391852310,1760914262381,-543.04,0.00037534,8]
[391852311,1760914262391,-795.62,0.00037534,8]
[391852312,1760914262401,-500.0,0.00037534,8]
[391852313,1760914262411,-550.89,0.00037534,8]
[391852314,1760914262534,-1497.87,0.00037534,4]
[391852315,1760914262544,-500.0,0.00037534,8]
[391852316,1760914262553,-2948.81,0.00037534,2]
[391852317,1760914262562,-893.82,0.00037534,8]
[391852318,1760914262572,-688.48,0.00037534,8]
[391852319,1760914262581,-855.19,0.00037534,8]
[391852320,1760914262590,-500.0,0.00037534,8]
[391852321,1760914262599,-604.79,0.00037534,8]
[391852322,1760914262609,-586.56,0.00037534,8]
[391852323,1760914262621,-631.41,0.00037534,8]
[391852324,1760914262630,-667.66,0.00037534,8]
[391852325,1760914262639,-1200.0,0.00037537,30]
[391852326,1760914262649,-7432.88814481,0.00037539,2]
[391852327,1760914262658,-5000.0,0.00037539,2]
[391852328,1760914262667,-5000.0,0.00037539,2]
[391852329,1760914262676,-5000.0,0.00037539,2]
[391852330,1760914262685,-5000.0,0.00037539,2]
[391852331,1760914262695,-1200.0,0.00037541,30]
[391852332,1760914262704,-600.0,0.00037553,30]
[391852333,1760914262713,-2000.0,0.00037582,5]
[391852334,1760914262723,-172.31,0.00037588,60]
[391852335,1760914262732,-153.0,0.000376,120]
[391852336,1760914262741,-542.06124566,0.00037644,30]
[391852337,1760914262751,-701.89041,0.00037688,30]
[391852338,1760914262760,-26371.16692576,0.000377,2]
[391852339,1760914262769,-500.0,0.00037743,30]
[391852340,1760914262779,-500.0,0.00037745,30]
[391852341,1760914262788,-500.0,0.00037763,30]
[391852342,1760914262797,-600.0,0.00037768,30]
[391852343,1760914262807,-1300.0,0.00037803,30]
[391852344,1760914262816,-709.93,0.00037808,60]
[391852345,1760914262826,-529.29,0.00037808,8]
[391852346,1760914262835,-590.38,0.00037808,2]
[391852347,1760914262844,-500.0,0.00037808,2]
[391852348,1760914262854,-733.54,0.00037808,8]
[391852349,1760914262863,-691.38,0.00037808,8]
[391852350,1760914262873,-691.65,0.00037808,8]
[391852351,1760914262882,-695.41,0.00037808,8]
[391852352,1760914262892,-602.05,0.00037808,8]
[391852353,1760914262902,-500.0,0.00037808,8]
[391852354,1760914262912,-680.15,0.00037808,8]
[391852355,1760914262922,-359.00447307,0.00037808,8]
[391852356,1760914262936,-371.6819794,0.00037808,8]
[391852357,1760914262946,-603.08,0.00037808,8]
[391852358,1760914262955,-500.0,0.00037808,8]
[391852359,1760914262964,-500.0,0.00037808,8]
[391852360,1760914262975,-526.81,0.00037808,8]
[391852361,1760914262984,-687.05,0.00037808,8]
[391852362,1760914262994,-231.44208945,0.00037808,8]
[391852363,1760914263005,-519.69,0.00037808,8]
[391852364,1760914263015,-654.36,0.00037808,8]
[391852365,1760914263024,-500.0,0.00037808,8]
[391852366,1760914263033,-543.04,0.00037808,8]
[391852367,1760914263043,-795.62,0.00037808,8]
[391852368,1760914263052,-500.0,0.00037808,8]
[391852369,1760914263061,-550.89,0.00037808,8]
[391852370,1760914263071,-1497.87,0.00037808,4]
[391852371,1760914263081,-500.0,0.00037808,8]
[391852372,1760914263091,-2948.81,0.00037808,2]
[391852373,1760914263100,-893.82,0.00037808,8]
[391852374,1760914263110,-688.48,0.00037808,8]
[391852375,1760914263119,-855.19,0.00037808,8]
[391852376,1760914263128,-500.0,0.00037808,8]
[391852377,1760914263138,-604.79,0.00037808,8]
[391852378,1760914263147,-586.56,0.00037808,8]
[391852379,1760914263157,-631.41,0.00037808,8]
[391852380,1760914263166,-667.66,0.00037808,8]
[391852381,1760914263176,-542.06124566,0.00037808,30]
[391852382,1760914263188,-500.0,0.00037833,30]
[391852383,1760914263197,-709.93,0.00037839,80]
[391852384,1760914263207,-709.94,0.00037869,100]
[391852385,1760914263216,-5846.27,0.00037873,2]
[391852386,1760914263225,-150.99,0.00037873,2]
[391852387,1760914263235,-999.99,0.00037873,2]
[391852388,1760914263244,-1300.0,0.00037883,30]
[391852389,1760914263254,-701.89041,0.00037888,30]
[391852390,1760914263263,-364.92,0.000379,30]
[391852391,1760914263272,-709.93,0.000379,120]
[391852392,1760914263282,-500.0,0.00037943,30]
[391852393,1760914263291,-542.06124566,0.00037945,30]
[391852394,1760914263300,-500.0,0.00037984,30]
[391852395,1760914263309,-150.0,0.00037993,2]
[391852396,1760914263318,-150.0,0.00037993,2]
[391852397,1760914263328,-150.0,0.00037993,2]
[391852398,1760914263337,-11154.70224944,0.00038,30]
[391852399,1760914263347,-17191.14,0.00038,2]
[391852400,1760914263356,-500.0,0.00038004,30]
[391852401,1760914263365,-500.0,0.00038007,30]
[391852402,1760914263374,-500.0,0.00038055,30]
[391852403,1760914263384,-500.0,0.0003807,30]
[391852404,1760914263393,-182.23088544,0.00038072,2]
[391852405,1760914263403,-529.29,0.00038082,8]
[391852406,1760914263412,-590.38,0.00038082,2]
[391852407,1760914263421,-353.00602741,0.00038082,2]
[391852408,1760914263431,-733.54,0.00038082,8]
[391852409,1760914263440,-691.38,0.00038082,8]
[391852410,1760914263449,-691.65,0.00038082,8]
[391852411,1760914263459,-695.41,0.00038082,8]
[391852412,1760914263468,-602.05,0.00038082,8]
[391852413,1760914263478,-500.0,0.00038082,8]
[391852414,1760914263487,-680.15,0.00038082,8]
[391852415,1760914263496,-603.08,0.00038082,8]
[391852416,1760914263505,-500.0,0.00038082,8]
[391852417,1760914263514,-500.0,0.00038082,8]
[391852418,1760914263523,-526.81,0.00038082,8]
[391852419,1760914263532,-687.05,0.00038082,8]
[391852420,1760914263542,-519.69,0.00038082,8]
[391852421,1760914263552,-654.36,0.00038082,8]
[391852422,1760914263562,-500.0,0.00038082,8]
[391852423,1760914263571,-543.04,0.00038082,8]
[391852424,1760914263580,-795.62,0.00038082,8]
[391852425,1760914263590,-500.0,0.00038082,8]
[391852426,1760914263599,-550.89,0.00038082,8]
[391852427,1760914263608,-1497.87,0.00038082,4]
[391852428,1760914263618,-500.0,0.00038082,8]
[391852429,1760914263627,-2948.81,0.00038082,2]
[391852430,1760914263636,-893.82,0.00038082,8]
[391852431,1760914263646,-688.48,0.00038082,8]
[391852432,1760914263655,-855.19,0.00038082,8]
[391852433,1760914263665,-500.0,0.00038082,8]
[391852434,1760914263673,-604.79,0.00038082,8]
[391852435,1760914263683,-586.56,0.00038082,8]
[391852436,1760914263693,-631.41,0.00038082,8]
[391852437,1760914263702,-667.66,0.00038082,8]
[391852438,1760914263711,-701.89041,0.00038088,30]
[391852439,1760914263721,-542.06124566,0.0003811,30]
[391852440,1760914263730,-1200.0,0.00038146,30]
[391852441,1760914263740,-1300.0,0.00038158,30]
[391852442,1760914263749,-10030.6599693,0.000382,120]
[391852443,1760914263758,-500.0,0.00038222,30]
[391852444,1760914263767,-1200.0,0.00038223,30]
[391852445,1760914263777,-542.06124566,0.00038247,30]
[391852446,1760914263786,-701.89041,0.00038288,30]
[391852447,1760914263796,-1200.0,0.00038294,30]
[391852448,1760914263805,-500.0,0.00038303,30]
[391852449,1760914263814,-529.29,0.00038356,8]
[391852450,1760914263823,-590.38,0.00038356,2]
[391852451,1760914263833,-733.54,0.00038356,8]
[391852452,1760914263843,-691.38,0.00038356,8]
[391852453,1760914263852,-691.65,0.00038356,8]
[391852454,1760914263861,-695.41,0.00038356,8]
[391852455,1760914263872,-602.05,0.00038356,8]
[391852456,1760914263881,-500.0,0.00038356,8]
[391852457,1760914263890,-680.15,0.00038356,8]
[391852458,1760914263899,-603.08,0.00038356,8]
[391852459,1760914263909,-173.56248287,0.00038356,8]
[391852460,1760914263918,-500.0,0.00038356,8]
[391852461,1760914263931,-526.81,0.00038356,8]
[391852462,1760914263940,-687.05,0.00038356,8]
[391852463,1760914263950,-519.69,0.00038356,8]
[391852464,1760914263959,-654.36,0.00038356,8]
[391852465,1760914263970,-500.0,0.00038356,8]
[391852466,1760914263979,-543.04,0.00038356,8]
[391852467,1760914263988,-795.62,0.00038356,8]
[391852468,1760914263998,-500.0,0.00038356,8]
[391852469,1760914264007,-550.89,0.00038356,8]
[391852470,1760914264017,-1497.87,0.00038356,4]
[391852471,1760914264026,-302.59,0.00038356,8]
[391852472,1760914264035,-2948.81,0.00038356,2]
[391852473,1760914264044,-893.82,0.00038356,8]
[391852474,1760914264053,-688.48,0.00038356,8]
[391852475,1760914264063,-855.19,0.00038356,8]
[391852476,1760914264072,-500.0,0.00038356,8]
[391852477,1760914264081,-604.79,0.00038356,8]
[391852478,1760914264091,-586.56,0.00038356,8]
[391852479,1760914264100,-631.41,0.00038356,8]
[391852480,1760914264110,-667.66,0.00038356,8]
[391852481,1760914264119,-953.61,0.00038356,10]
[391852482,1760914264128,-356.99675802,0.0003836,120]
[391852483,1760914264137,-356.99675802,0.0003836,120]
[391852484,1760914264147,-356.99675802,0.0003836,120]
[391852485,1760914264156,-356.99675802,0.0003836,120]
[391852486,1760914264165,-356.99675802,0.0003836,120]
[391852487,1760914264174,-356.99675802,0.0003836,120]
[391852488,1760914264183,-356.99675802,0.0003836,120]
[391852489,1760914264192,-356.99675802,0.0003836,120]
[391852490,1760914264201,-356.99675802,0.0003836,120]
[391852491,1760914264211,-356.99675802,0.0003836,120]
[391852492,1760914264220,-356.99675802,0.0003836,120]
[391852493,1760914264229,-356.99675802,0.0003836,120]
[391852494,1760914264238,-356.99675802,0.0003836,120]
[391852495,1760914264247,-356.99675802,0.0003836,120]
[391852496,1760914264256,-356.99675802,0.0003836,120]
[391852497,1760914264265,-356.99675802,0.0003836,120]
[391852498,1760914264274,-356.99675802,0.0003836,120]
[391852499,1760914264283,-356.99675802,0.0003836,120]
[391852500,1760914264292,-356.99675802,0.0003836,120]
[391852501,1760914264301,-356.99,0.0003836,120]
[391852502,1760914264310,-832.99243537,0.0003836,120]
[391852503,1760914264319,-832.99243537,0.0003836,120]
[391852504,1760914264329,-832.99243537,0.0003836,120]
[391852505,1760914264338,-832.99243537,0.0003836,120]
[391852506,1760914264347,-832.99243537,0.0003836,120]
[391852507,1760914264356,-314.76506842,0.00038374,30]
[391852508,1760914264366,-1200.0,0.0003838,30]
[391852509,1760914264375,-1200.0,0.00038399,30]
[391852510,1760914264384,-542.06124566,0.00038411,30]
[391852511,1760914264393,-1200.0,0.00038424,30]
[391852512,1760914264403,-500.0,0.00038441,30]
[391852513,1760914264411,-701.89041,0.00038488,30]
[391852514,1760914264421,-500.0,0.00038522,30]
[391852515,1760914264431,-421.732,0.00038525,52]
[391852516,1760914264440,-1200.0,0.00038544,30]
[391852517,1760914264449,-542.06124566,0.00038548,30]
[391852518,1760914264458,-1200.0,0.00038549,30]
[391852519,1760914264467,-500.0,0.00038549,30]
[391852520,1760914264476,-832.99243537,0.00038614,120]
[391852521,1760914264485,-500.0,0.0003862,30]
[391852522,1760914264494,-1091.0,0.00038625,5]
[391852523,1760914264503,-529.29,0.0003863,8]
[391852524,1760914264512,-590.38,0.0003863,2]
[391852525,1760914264522,-733.54,0.0003863,8]
[391852526,1760914264531,-691.38,0.0003863,8]
[391852527,1760914264540,-691.65,0.0003863,8]
[391852528,1760914264550,-695.41,0.0003863,8]
[391852529,1760914264559,-602.05,0.0003863,8]
[391852530,1760914264568,-500.0,0.0003863,8]
[391852531,1760914264577,-680.15,0.0003863,8]
[391852532,1760914264586,-603.08,0.0003863,8]
[391852533,1760914264595,-519.6921639,0.0003863,8]
[391852534,1760914264604,-526.81,0.0003863,8]
[391852535,1760914264614,-687.05,0.0003863,8]
[391852536,1760914264623,-519.69,0.0003863,8]
[391852537,1760914264633,-654.36,0.0003863,8]
[391852538,1760914264643,-500.0,0.0003863,8]
[391852539,1760914264652,-543.04,0.0003863,8]
[391852540,1760914264661,-795.62,0.0003863,8]
[391852541,1760914264670,-600.69736709,0.0003863,8]
[391852542,1760914264680,-550.89,0.0003863,8]
[391852543,1760914264690,-1497.87,0.0003863,4]
[391852544,1760914264699,-2948.81,0.0003863,2]
[391852545,1760914264709,-893.82,0.0003863,8]
[391852546,1760914264719,-688.48,0.0003863,8]
[391852547,1760914264728,-855.19,0.0003863,8]
[391852548,1760914264737,-501.74419433,0.0003863,8]
[391852549,1760914264746,-604.79,0.0003863,8]
[391852550,1760914264756,-586.56,0.0003863,8]
[391852551,1760914264765,-631.41,0.0003863,8]
[391852552,1760914264774,-667.66,0.0003863,8]
[391852553,1760914264783,-1300.0,0.00038631,30]
[391852554,1760914264792,-1200.0,0.00038635,30]
[391852555,1760914264801,-701.89041,0.00038688,30]
[391852556,1760914264811,-542.06124566,0.00038712,30]
[391852557,1760914264820,-500.0,0.00038719,30]
[391852558,1760914264829,-500.0,0.00038745,30]
[391852559,1760914264838,-364.92,0.000388,30]
[391852560,1760914264847,-542.06124566,0.00038849,30]
[391852561,1760914264856,-500.0,0.00038898,30]
[391852562,1760914264866,-1200.0,0.000389,14]
[391852563,1760914264875,-529.29,0.00038904,8]
[391852564,1760914264884,-590.38,0.00038904,2]
[391852565,1760914264894,-733.54,0.00038904,8]
[391852566,1760914264903,-691.38,0.00038904,8]
[391852567,1760914264912,-691.65,0.00038904,8]
[391852568,1760914264922,-695.41,0.00038904,8]
[391852569,1760914264937,-602.05,0.00038904,8]
[391852570,1760914264946,-162.50623579,0.00038904,8]
[391852571,1760914264956,-680.15,0.00038904,8]
[391852572,1760914264965,-603.08,0.00038904,8]
[391852573,1760914264977,-526.81,0.00038904,8]
[391852574,1760914264988,-687.05,0.00038904,8]
[391852575,1760914264997,-519.69,0.00038904,8]
[391852576,1760914265007,-654.36,0.00038904,8]
[391852577,1760914265016,-500.0,0.00038904,8]
[391852578,1760914265026,-543.04,0.00038904,8]
[391852579,1760914265035,-795.62,0.00038904,8]
[391852580,1760914265045,-550.89,0.00038904,8]
[391852581,1760914265055,-1497.87,0.00038904,4]
[391852582,1760914265064,-2948.81,0.00038904,2]
[391852583,1760914265073,-893.82,0.00038904,8]
[391852584,1760914265178,-688.48,0.00038904,8]
[391852585,1760914265201,-855.19,0.00038904,8]
[391852586,1760914265211,-604.79,0.00038904,8]
[391852587,1760914265220,-586.56,0.00038904,8]
[391852588,1760914265230,-631.41,0.00038904,8]
[391852589,1760914265239,-667.66,0.00038904,8]
[391852590,1760914265248,-17191.13,0.00039,30]
[391852591,1760914265258,-500.0,0.00039001,30]
[391852592,1760914265267,-542.06124566,0.00039014,30]
[391852593,1760914265276,-1605.0,0.00039015,2]
[391852594,1760914265285,-600.0,0.00039022,30]
[391852595,1760914265294,-600.0,0.00039063,30]
[391852596,1760914265304,-832.99243537,0.00039063,120]
[391852597,1760914265313,-1200.0,0.00039066,30]
[391852598,1760914265322,-172.31,0.0003907,60]
[391852599,1760914265331,-701.89041,0.00039088,30]
[391852600,1760914265340,-500.0,0.00039093,30]
[391852601,1760914265349,-2500.0,0.00039106,30]
[391852602,1760914265358,-308.82109804,0.00039125,2]
[391852603,1760914265367,-500.0,0.0003916,30]
[391852604,1760914265377,-529.38576872,0.00039178,8]
[391852605,1760914265386,-590.54049394,0.00039178,2]
[391852606,1760914265396,-733.64525371,0.00039178,8]
[391852607,1760914265405,-691.50122593,0.00039178,8]
[391852608,1760914265414,-691.7364939,0.00039178,8]
[391852609,1760914265424,-695.4476273,0.00039178,8]
[391852610,1760914265433,-602.20770803,0.00039178,8]
[391852611,1760914265443,-680.33,0.00039178,8]
[391852612,1760914265452,-603.19142102,0.00039178,8]
[391852613,1760914265461,-526.995572,0.00039178,8]
[391852614,1760914265470,-687.08428351,0.00039178,8]
[391852615,1760914265480,-519.83,0.00039178,8]
[391852616,1760914265489,-654.57,0.00039178,8]
[391852617,1760914265499,-219.47618392,0.00039178,8]
[391852618,1760914265508,-543.23862127,0.00039178,8]
[391852619,1760914265518,-795.63,0.00039178,8]
[391852620,1760914265529,-551.12179949,0.00039178,8]
[391852621,1760914265539,-1497.88863272,0.00039178,4]
[391852622,1760914265548,-2948.97292495,0.00039178,2]
[391852623,1760914265557,-894.02,0.00039178,8]
[391852624,1760914265567,-688.56,0.00039178,8]
[391852625,1760914265577,-855.39,0.00039178,8]
[391852626,1760914265586,-604.99661478,0.00039178,8]
[391852627,1760914265595,-586.6906196,0.00039178,8]
[391852628,1760914265605,-631.42,0.00039178,8]
[391852629,1760914265614,-667.78805082,0.00039178,8]
[391852630,1760914265623,-701.89041,0.00039288,30]
[391852631,1760914265633,-649.75,0.000393,7]
[391852632,1760914265642,-1200.0,0.00039312,30]
[391852633,1760914265652,-900.0,0.0003934,30]
[391852634,1760914265661,-500.0,0.00039388,30]
[391852635,1760914265671,-10030.6599693,0.000394,120]
[391852636,1760914265680,-700.0,0.00039405,30]
[391852637,1760914265690,-546.93,0.00039417,2]
[391852638,1760914265699,-168.31,0.00039417,2]
[391852639,1760914265708,-413.53,0.00039417,2]
[391852640,1760914265718,-372.02,0.00039417,2]
[391852641,1760914265727,-1093.86,0.00039417,2]
[391852642,1760914265736,-168.31,0.00039417,2]
[391852643,1760914265745,-543.24,0.00039417,2]
[391852644,1760914265755,-168.31,0.00039417,2]
[391852645,1760914265764,-168.31,0.00039417,2]
[391852646,1760914265773,-336.07,0.00039417,2]
[391852647,1760914265782,-1200.0,0.00039471,30]
[391852648,1760914265791,-701.89041,0.00039488,30]
[391852649,1760914265800,-832.99243537,0.00039512,120]
[391852650,1760914265809,-1200.0,0.00039567,30]
[391852651,1760914265819,-700.0,0.00039583,30]
[391852652,1760914265828,-2300.0,0.00039625,30]
[391852653,1760914265837,-254.49,0.00039654,2]
[391852654,1760914265847,-644.64350025,0.00039675,2]
[391852655,1760914265856,-680.26318757,0.00039675,2]
[391852656,1760914265866,-201.83481204,0.00039675,2]
[391852657,1760914265875,-2902.75769256,0.00039675,2]
[391852658,1760914265884,-701.89041,0.00039688,30]
[391852659,1760914265894,-776.57477485,0.00039705,30]
[391852660,1760914265903,-152.0,0.00039783,4]
[391852661,1760914265913,-1700.0,0.00039807,30]
[391852662,1760914265923,-733.35149314,0.00039831,30]
[391852663,1760914265937,-433.96168818,0.00039878,14]
[391852664,1760914265946,-701.89041,0.00039888,30]
[391852665,1760914265956,-171.47435773,0.00039921,15]
[391852666,1760914265965,-475.23364478,0.00039925,2]
[391852667,1760914265975,-161.76830819,0.00039925,30]
[391852668,1760914265984,-832.99243537,0.00039961,120]
[391852669,1760914265993,-50000.0,0.0004,40]
[391852670,1760914266005,-101962.10786271,0.0004,2]
[391852671,1760914266015,-220.9609929,0.0004,120]
[391852672,1760914266024,-215.86,0.0004,30]
[391852673,1760914266034,-1000.0,0.0004,120]
[391852674,1760914266043,-1000.0,0.0004,10]
[391852675,1760914266052,-150.0,0.0004,90]
[391852676,1760914266062,-7118.0,0.0004,7]
[391852677,1760914266071,-1767.33225,0.0004,2]
[391852678,1760914266080,-2500.0,0.0004,120]
[391852679,1760914266089,-994.37169098,0.0004,120]
[391852680,1760914266099,-701.89041,0.00040088,30]
[391852681,1760914266108,-160.0,0.000402,120]
[391852682,1760914266117,-159.51,0.00040239,2]
[391852683,1760914266127,-701.89041,0.00040288,30]
[391852684,1760914266136,-832.99243537,0.0004041,120]
[391852685,1760914266145,-701.89041,0.00040488,30]
[391852686,1760914266155,-10030.6599693,0.000405,120]